bitfinex/quotes_SOLUSD_20250819
["timestamp","ask_amount","ask_price","bid_price","bid_amount"]
[1755619820538,0.66,178.7,178.68,11.19599621]
[1755619820711,12.41754158,178.74,178.69,11.19599621]
[1755619820911,0.66,178.73,178.67,26.0]
[1755619821125,0.66,178.73,178.69,11.19599621]
[1755619821408,0.66,178.73,178.7,11.19599621]
[1755619821608,6.25440559,178.75,178.72,11.19599621]
[1755619821822,0.66,178.74,178.72,11.19599621]
[1755619822244,5.59440559,178.75,178.73,11.19599621]
[1755619822413,0.66,178.74,178.71,11.19599621]
[1755619822615,6.25440559,178.75,178.73,11.19599621]
[1755619822817,0.66,178.74,178.7,11.19599621]
[1755619823128,11.75754158,178.73,178.67,11.19599621]
[1755619823316,11.85599621,178.72,178.67,11.19599621]
[1755619823515,11.19599621,178.72,178.67,11.19599621]
[1755619823712,0.66,178.71,178.67,11.19599621]
[1755619824025,5.5959709,178.7,178.65,11.19599621]
[1755619824228,5.5959709,178.7,178.63,11.25599621]
[1755619824229,12.41754158,178.69,178.63,11.25599621]
[1755619824435,11.85599621,178.68,178.63,0.06]
[1755619824758,6.25573977,178.71,178.67,11.19599621]
[1755619824923,6.25471858,178.74,178.7,11.19599621]
[1755619825113,6.25471858,178.74,178.71,11.19599621]
[1755619825317,0.66,178.73,178.71,11.19599621]
[1755619825550,0.66,178.73,178.68,26.0]
[1755619825731,5.59534467,178.72,178.67,0.06]
[1755619826048,0.66,178.71,178.68,11.19599621]
[1755619826544,0.66,178.71,178.69,11.19599621]
[1755619826844,0.03,178.73,178.7,11.19599621]
[1755619827042,0.03,178.73,178.72,11.19599621]
[1755619827533,6.28503161,178.73,178.7,11.19599621]
[1755619827735,0.66,178.72,178.69,11.19599621]
[1755619827936,0.66,178.71,178.68,11.19599621]
[1755619828357,0.66,178.7,178.68,11.19599621]
[1755619828658,0.66,178.7,178.69,11.19599621]
[1755619829039,0.66,178.7,178.67,0.06]
[1755619829356,5.62503161,178.73,178.69,11.19599621]
[1755619829526,0.66,178.72,178.7,11.19599621]
[1755619829957,0.66,178.71,178.7,11.19599621]
[1755619830170,6.28503161,178.73,178.7,11.19599621]
[1755619830459,0.66,178.72,178.7,11.19599621]
[1755619830635,12.41754158,178.72,178.67,0.06]
[1755619830834,0.66,178.71,178.67,11.25599621]
[1755619831154,0.66,178.7,178.67,11.25599621]
[1755619831462,0.66,178.72,178.69,11.19599621]
[1755619831747,5.62503161,178.73,178.71,11.19599621]
[1755619832052,5.62503161,178.73,178.72,11.19599621]
[1755619832238,5.62503161,178.73,178.71,11.19599621]
[1755619832429,5.62503161,178.73,178.72,11.19599621]
[1755619832430,0.03,178.73,178.72,11.19599621]
[1755619832753,0.03,178.73,178.72,11.85599621]
[1755619832957,0.03,178.73,178.72,11.19599621]
[1755619833739,1.27154537,178.73,178.68,11.19599621]
[1755619833927,6.27558321,178.72,178.68,11.19599621]
[1755619834260,5.62514636,178.73,178.7,11.19599621]
[1755619834621,6.30514636,178.73,178.7,11.19599621]
[1755619835358,0.03,178.73,178.72,11.19599621]
[1755619835876,0.03,178.73,178.72,11.91599621]
[1755619836054,0.03,178.75,178.72,11.91599621]
[1755619836393,0.03,178.77,178.76,26.0]
[1755619836580,40.7,178.85,178.76,37.19599621]
[1755619836778,40.7,178.85,178.83,11.19599621]
[1755619837159,46.2912776,178.85,178.83,11.19599621]
[1755619837359,0.68,178.84,178.82,11.19599621]
[1755619837692,40.7,178.85,178.83,11.19599621]
[1755619837893,40.7,178.85,178.84,11.19599621]
[1755619838073,46.29073171,178.87,178.84,11.19599621]
[1755619838586,46.97073171,178.87,178.84,11.19599621]
[1755619838968,46.29073171,178.87,178.84,11.19599621]
[1755619839173,0.68,178.86,178.84,11.19599621]
[1755619839689,0.68,178.85,178.79,0.72]
[1755619839891,0.68,178.85,178.83,11.19599621]
[1755619840061,5.59103254,178.86,178.84,11.19599621]
[1755619840373,40.7,178.87,178.85,11.19599621]
[1755619840689,46.29068282,178.87,178.85,11.19599621]
[1755619841160,46.2906631,178.87,178.86,11.19599621]
[1755619841366,46.2906631,178.87,178.83,0.72]
[1755619841868,46.9706631,178.87,178.8,0.72]
[1755619842868,46.9706631,178.87,178.84,11.19599621]
[1755619843179,46.2906631,178.87,178.84,11.19599621]
[1755619843571,46.2906631,178.87,178.85,11.19599621]
[1755619843772,0.68,178.86,178.81,0.72]
[1755619843987,46.2906631,178.87,178.82,11.19599621]
[1755619843988,5.59159024,178.84,178.82,11.19599621]
[1755619844167,0.68,178.83,178.78,0.72]
[1755619844368,0.68,178.83,178.81,11.19599621]
[1755619844691,5.59159024,178.84,178.79,0.72]
[1755619844863,5.59159024,178.84,178.78,26.0]
[1755619844864,5.59159024,178.84,178.83,11.19599621]
[1755619845068,6.27159024,178.84,178.82,11.19599621]
[1755619845479,5.59159024,178.84,178.82,11.19599621]
[1755619845673,0.68,178.83,178.77,26.0]
[1755619845898,0.68,178.83,178.8,11.19599621]
[1755619846064,5.59221563,178.82,178.8,11.19599621]
[1755619846258,0.68,178.81,178.78,11.19599621]
[1755619846494,0.56154537,178.8,178.73,0.72]
[1755619846674,40.68,178.79,178.75,11.19599621]
[1755619846875,0.68,178.78,178.75,11.19599621]
[1755619847290,0.68,178.78,178.72,26.0]
[1755619847291,0.68,178.77,178.7,0.72]
[1755619847489,11.75754158,178.76,178.66,0.78]
[1755619847800,11.19599621,178.71,178.66,0.06]
[1755619847971,41.24154537,178.7,178.66,0.06]
[1755619848174,5.59628406,178.69,178.66,0.06]
[1755619848373,6.27628406,178.69,178.66,0.06]
[1755619848569,1.24154537,178.68,178.66,0.06]
[1755619849689,0.56154537,178.68,178.66,0.06]
[1755619850603,6.15814263,178.68,178.66,0.06]
[1755619850787,1.24154537,178.72,178.67,11.25599621]
[1755619850988,5.59574285,178.71,178.69,11.19599621]
[1755619851189,40.68,178.71,178.7,11.19599621]
[1755619851589,40.68,178.71,178.67,0.78]
[1755619851907,12.43754158,178.7,178.67,0.06]
[1755619852273,0.68,178.69,178.67,0.06]
[1755619852508,0.56154537,178.68,178.67,0.06]
[1755619852703,6.83814263,178.68,178.67,0.06]
[1755619853087,18.03413884,178.68,178.67,0.06]
[1755619853488,6.83814263,178.68,178.67,0.06]
[1755619853696,18.03413884,178.68,178.67,0.06]
[1755619854702,31.62973285,178.68,178.66,0.06]
[1755619854906,52.57599621,178.67,178.66,0.06]
[1755619855315,66.17159022,178.67,178.66,0.06]
[1755619855607,41.38,178.67,178.66,0.06]
[1755619856919,46.9769105,178.67,178.66,0.06]
[1755619857914,46.2969105,178.67,178.66,0.06]
[1755619858494,58.17290671,178.67,178.66,0.06]
[1755619859409,46.9769105,178.67,178.66,0.06]
[1755619859729,5.59637609,178.69,178.66,11.97599621]
[1755619860019,5.59606125,178.7,178.68,11.19599621]
[1755619860216,5.59606125,178.7,178.68,11.91599621]
[1755619860515,1.24154537,178.69,178.66,0.06]
[1755619860715,40.7,178.68,178.66,0.06]
[1755619860920,40.7,178.68,178.66,11.25599621]
[1755619861434,40.7,178.68,178.67,11.91599621]
[1755619861728,40.7,178.69,178.67,11.91599621]
[1755619861928,40.7,178.7,178.68,11.91599621]
[1755619862217,40.7,178.7,178.69,11.91599621]
[1755619862440,46.29542398,178.72,178.69,11.19599621]
[1755619862593,46.29542398,178.72,178.68,0.72]
[1755619862594,46.97542398,178.72,178.68,11.19599621]
[1755619863091,46.29542398,178.72,178.69,11.19599621]
[1755619863725,46.99542398,178.72,178.68,11.19599621]
[1755619863896,1.26154537,178.71,178.66,11.25599621]
[1755619864103,0.7,178.7,178.66,0.06]
[1755619864325,40.7,178.69,178.66,11.25599621]
[1755619864505,46.29647571,178.69,178.66,11.25599621]
[1755619864829,0.7,178.68,178.66,0.06]
[1755619865032,0.56154537,178.67,178.66,0.06]
[1755619865417,1.26154537,178.67,178.66,0.06]
[1755619865721,0.56154537,178.67,178.66,0.06]
[1755619866081,0.7,178.67,178.66,0.06]
[1755619866199,0.56154537,178.68,178.66,0.06]
[1755619866400,5.5969105,178.67,178.66,0.06]
[1755619866818,17.49290671,178.67,178.66,0.06]
[1755619867414,6.2969105,178.67,178.66,0.06]
[1755619867937,5.5969105,178.67,178.66,0.06]
[1755619868138,46.2969105,178.67,178.66,0.06]
[1755619871741,58.19290671,178.67,178.66,0.06]
[1755619872426,46.2969105,178.67,178.66,0.06]
[1755619872628,58.19290671,178.67,178.66,0.06]
[1755619872839,71.78850072,178.67,178.66,0.06]
[1755619873825,71.78850072,178.67,178.66,1e-08]
[1755619874623,131.0,178.66,178.65,1e-08]
[1755619874954,131.0,178.66,178.64,1e-08]
[1755619874955,45.19313109,178.65,178.64,1e-08]
[1755619875125,98.35067267,178.65,178.64,1e-08]
[1755619876336,112.34451537,178.65,178.6,0.06]
[1755619876521,11.19599621,178.61,178.6,0.06]
[1755619876721,51.89599621,178.61,178.6,0.06]
[1755619876925,57.49478687,178.61,178.6,0.06]
[1755619877127,58.19478687,178.61,178.6,0.06]
[1755619877632,58.75633224,178.61,178.6,0.06]
[1755619878538,72.35192625,178.61,178.6,1e-08]
[1755619879436,46.86033603,178.61,178.6,1e-08]
[1755619879748,46.29879066,178.61,178.6,1e-08]
[1755619879934,40.7,178.61,178.6,0.70000001]
[1755619880647,0.56154537,178.63,178.6,11.89599622]
[1755619880648,5.59824721,178.63,178.6,11.89599622]
[1755619880954,5.5969105,178.67,178.62,11.19599621]
[1755619881243,40.7,178.66,178.63,11.19599621]
[1755619881459,40.7,178.66,178.62,11.89599621]
[1755619881631,0.56154537,178.65,178.61,11.19599621]
[1755619881837,40.7,178.64,178.61,11.19599621]
[1755619882146,40.7,178.64,178.6,11.89599622]
[1755619882367,40.7,178.64,178.61,11.89599621]
[1755619882822,5.5981638,178.63,178.61,0.7]
[1755619883015,5.5981638,178.63,178.61,11.19599621]
[1755619883353,40.7,178.64,178.62,11.89599621]
[1755619883534,46.29791075,178.64,178.62,11.89599621]
[1755619884628,5.59659726,178.68,178.63,0.7]
[1755619884856,5.59722377,178.66,178.64,0.7]
[1755619885052,5.59722377,178.66,178.61,0.7]
[1755619885349,41.4,178.65,178.6,1e-08]
[1755619885530,41.4,178.65,178.61,11.19599621]
[1755619886041,0.56154537,178.64,178.61,11.19599621]
[1755619886347,40.7,178.63,178.61,11.19599621]
[1755619886920,5.59847721,178.62,178.6,1e-08]
[1755619887153,6.16002258,178.62,178.6,1e-08]
[1755619887516,40.7,178.61,178.6,1e-08]
[1755619888852,46.29879066,178.61,178.6,1e-08]
[1755619889855,40.7,178.62,178.6,11.89599622]
[1755619890065,40.7,178.62,178.61,11.19599621]
[1755619890285,5.59722377,178.66,178.61,11.89599621]
[1755619890447,40.7,178.64,178.62,11.19599621]
[1755619890775,40.7,178.64,178.6,1e-08]
[1755619890776,40.7,178.64,178.63,11.89599621]
[1755619890975,46.29785042,178.64,178.61,11.89599621]
[1755619891284,0.56154537,178.63,178.6,1e-08]
[1755619891446,40.7,178.62,178.61,0.7]
[1755619891870,40.7,178.62,178.6,11.19599622]
[1755619892179,40.7,178.62,178.6,1e-08]
[1755619892957,46.29868278,178.62,178.6,1e-08]
[1755619893540,1.25154537,178.61,178.6,1e-08]
[1755619894045,12.44754158,178.61,178.6,1e-08]
[1755619894939,18.04633224,178.61,178.6,1e-08]
[1755619895252,5.59879066,178.61,178.6,1e-08]
[1755619895453,6.16033603,178.61,178.6,1e-08]
[1755619895672,40.7,178.62,178.6,0.66000001]
[1755619895976,40.7,178.62,178.61,11.19599621]
[1755619896174,40.7,178.64,178.61,11.85599621]
[1755619896408,40.7,178.64,178.62,11.85599621]
[1755619896554,40.7,178.64,178.63,11.19599621]
[1755619896752,0.03,178.65,178.63,11.85599621]
[1755619897072,40.7,178.64,178.6,11.85599622]
[1755619897797,40.7,178.64,178.61,11.85599621]
[1755619898095,40.7,178.64,178.63,11.19599621]
[1755619898293,40.7,178.64,178.6,1e-08]
[1755619898495,0.69,178.63,178.6,1e-08]
[1755619898952,1.25154537,178.62,178.6,1e-08]
[1755619899152,41.95154537,178.62,178.6,1e-08]
[1755619899977,40.7,178.62,178.6,1e-08]
[1755619900486,41.39,178.62,178.6,1e-08]
[1755619900686,0.69,178.61,178.6,1e-08]
[1755619900854,40.7,178.62,178.6,1e-08]
[1755619901055,40.7,178.62,178.61,11.19599621]
[1755619901262,46.29827105,178.63,178.61,11.85599621]
[1755619901483,46.29827105,178.63,178.6,1e-08]
[1755619901690,46.29827105,178.63,178.6,11.85599622]
[1755619901996,0.69,178.62,178.6,1e-08]
[1755619902161,40.7,178.61,178.6,1e-08]
[1755619902355,41.39,178.61,178.6,1e-08]
[1755619902674,40.7,178.61,178.6,1e-08]
[1755619902883,40.7,178.63,178.6,11.85599622]
[1755619903067,5.62777951,178.65,178.62,11.19599621]
[1755619903398,46.32753708,178.65,178.61,11.19599621]
[1755619903560,47.01753708,178.65,178.6,11.19599622]
[1755619903763,47.01753708,178.65,178.61,11.19599621]
[1755619903967,46.32753708,178.65,178.62,11.19599621]
[1755619904374,47.01753708,178.65,178.61,11.19599621]
[1755619904883,47.01753708,178.65,178.6,11.19599622]
[1755619905056,47.01753708,178.65,178.6,11.85599622]
[1755619905462,0.69,178.64,178.6,0.66000001]
[1755619905680,0.69,178.64,178.6,11.85599622]
[1755619905889,46.32753708,178.65,178.6,11.85599622]
[1755619906195,11.19599621,178.61,178.6,1e-08]
[1755619906494,40.7,178.61,178.6,0.66000001]
[1755619906661,6.31753708,178.65,178.6,11.85599622]
[1755619906861,40.7,178.63,178.61,11.85599621]
[1755619907060,46.32753708,178.65,178.62,11.85599621]
[1755619907590,46.32753708,178.65,178.61,11.19599621]
[1755619907764,12.44754158,178.64,178.6,1e-08]
[1755619907964,40.7,178.63,178.6,1e-08]
[1755619908276,41.39,178.63,178.6,1e-08]
[1755619909000,40.7,178.63,178.61,0.66]
[1755619909180,51.89599621,178.63,178.62,0.66]
[1755619910080,57.49426635,178.63,178.6,1e-08]
[1755619910284,11.19599621,178.61,178.6,1e-08]
[1755619911091,46.85981551,178.63,178.6,1e-08]
[1755619911297,11.19599621,178.61,178.6,1e-08]
[1755619911879,11.19599621,178.61,178.6,0.66000001]
[1755619912288,11.19599621,178.61,178.6,1e-08]
[1755619912781,52.45754158,178.61,178.6,1e-08]
[1755619913290,58.05633224,178.61,178.6,1e-08]
[1755619914172,57.49478687,178.61,178.6,1e-08]
[1755619915294,51.89599621,178.62,178.6,0.66000001]
[1755619915667,11.19599621,178.61,178.6,1e-08]
[1755619916281,46.29849886,178.62,178.6,1e-08]
[1755619916489,11.19599621,178.61,178.6,1e-08]
[1755619917394,16.79478687,178.61,178.6,1e-08]
[1755619917789,17.48478687,178.61,178.6,1e-08]
[1755619918367,6.28879066,178.61,178.6,1e-08]
[1755619918571,11.19599621,178.61,178.6,1e-08]
[1755619919600,18.04633224,178.61,178.6,1e-08]
[1755619922577,31.64192625,178.61,178.6,1e-08]
[1755619922776,21.7676312,178.61,178.6,1e-08]
[1755619922987,35.36330362,178.61,178.6,1e-08]
[1755619923305,35.36330362,178.61,178.58,0.06]
[1755619923306,11.19599621,178.59,178.58,0.06]
[1755619923493,58.05695924,178.59,178.58,0.06]
[1755619923808,58.77695924,178.59,178.58,0.06]
[1755619924525,16.79520644,178.6,178.58,0.06]
[1755619924675,46.29921023,178.6,178.58,0.73]
[1755619924876,11.19599621,178.59,178.58,0.06]
[1755619925300,11.91599621,178.59,178.58,0.06]
[1755619925483,17.51541387,178.59,178.58,0.06]
[1755619926719,39.59559401,178.58,178.56,0.06]
[1755619926899,52.45754158,178.57,178.56,0.06]
[1755619927085,53.17754158,178.57,178.56,0.06]
[1755619927593,53.17754158,178.57,178.54,0.06]
[1755619927594,58.77758638,178.57,178.54,0.06]
[1755619927915,11.19599621,178.55,178.54,0.06]
[1755619928117,52.45754158,178.55,178.54,0.06]
[1755619928295,66.77313559,178.55,178.54,0.06]
[1755619928820,66.77313559,178.55,178.54,1e-08]
[1755619928995,26.0,178.52,178.51,0.2]
[1755619929315,78.45754158,178.52,178.51,0.2]
[1755619929613,58.77915484,178.52,178.51,0.2]
[1755619930015,58.05915484,178.52,178.51,0.2]
[1755619930316,51.89599621,178.52,178.51,0.2]
[1755619930490,58.05915484,178.52,178.51,0.2]
[1755619931511,57.49760947,178.52,178.51,0.2]
[1755619932627,46.30161326,178.52,178.51,0.2]
[1755619932827,51.89599621,178.52,178.51,0.87]
[1755619933040,0.56154537,178.54,178.51,0.87]
[1755619933340,0.72,178.58,178.52,0.67]
[1755619933341,51.89599621,178.56,178.52,0.67]
[1755619933627,51.89599621,178.56,178.53,0.67]
[1755619933841,57.49647839,178.56,178.53,0.67]
[1755619934044,11.19599621,178.54,178.51,0.2]
[1755619934245,11.75754158,178.53,178.51,0.2]
[1755619934610,51.89599621,178.52,178.51,0.2]
[1755619934820,52.61599621,178.52,178.51,0.2]
[1755619935449,53.17754158,178.52,178.51,0.2]
[1755619935754,58.77915484,178.52,178.51,0.2]
[1755619936044,40.7,178.52,178.51,0.2]
[1755619936255,51.89599621,178.52,178.51,0.2]
[1755619936842,57.49760947,178.52,178.51,0.2]
[1755619938414,47.90202242,178.52,178.51,0.2]
[1755619938648,7.20202242,178.57,178.51,8.07202242]
[1755619938949,0.56154537,178.61,178.52,0.67]
[1755619939120,5.59910414,178.6,178.55,7.20202242]
[1755619939320,40.7,178.59,178.56,0.67]
[1755619939634,46.29951143,178.59,178.54,33.20202242]
[1755619939947,40.7,178.59,178.56,7.20202242]
[1755619940147,0.03,178.61,178.57,0.67]
[1755619940631,11.18737434,178.6,178.55,0.67]
[1755619940947,11.18737434,178.59,178.55,0.67]
[1755619941150,11.18737434,178.58,178.52,37.18737434]
[1755619941352,51.90737434,178.58,178.52,37.18737434]
[1755619941651,57.50732525,178.58,178.53,26.67]
[1755619941830,57.50732525,178.58,178.54,0.67]
[1755619942534,40.72,178.58,178.55,0.67]
[1755619942737,46.31975524,178.58,178.55,0.67]
[1755619942941,57.50712958,178.58,178.55,0.67]
[1755619943955,46.31975524,178.58,178.55,0.67]
[1755619944366,57.50712958,178.58,178.53,37.18737434]
[1755619944535,11.18737434,178.57,178.52,6.30941807]
[1755619944842,41.42,178.56,178.51,26.2]
[1755619945040,11.18737434,178.54,178.51,0.2]
[1755619945227,51.88737434,178.54,178.51,0.2]
[1755619945422,11.18737434,178.53,178.51,0.2]
[1755619945857,16.7888114,178.53,178.51,0.2]
[1755619946058,11.90737434,178.52,178.51,0.2]
[1755619946236,11.18737434,178.52,178.51,0.2]
[1755619946644,11.90737434,178.52,178.51,0.2]
[1755619946864,52.60737434,178.52,178.51,0.2]
[1755619947380,51.88737434,178.52,178.51,0.2]
[1755619947529,40.7,178.52,178.51,0.2]
[1755619947852,57.4889876,178.52,178.51,0.2]
[1755619948060,58.2089876,178.52,178.51,0.2]
[1755619948578,47.02161326,178.52,178.51,0.2]
[1755619948857,47.02161326,178.52,178.49,0.06]
[1755619948858,202.80458161,178.52,178.49,0.06]
[1755619949028,11.18737434,178.5,178.49,0.06]
[1755619949228,51.88737434,178.5,178.49,0.06]
[1755619949628,52.60737434,178.5,178.49,0.06]
[1755619949839,57.48961523,178.5,178.49,0.06]
[1755619950267,40.7,178.5,178.49,0.06]
[1755619950439,131.0,178.52,178.49,0.06]
[1755619950440,136.60163269,178.52,178.49,0.06]
[1755619950645,40.7,178.5,178.49,0.73]
[1755619950855,40.7,178.5,178.49,0.06]
[1755619951039,40.7,178.52,178.49,11.24737434]
[1755619951237,40.7,178.53,178.49,26.06]
[1755619951537,40.72,178.53,178.5,0.67]
[1755619951742,11.18737434,178.58,178.52,11.18737434]
[1755619951929,40.72,178.57,178.53,11.18737434]
[1755619952338,40.72,178.57,178.52,11.18737434]
[1755619952539,40.72,178.57,178.52,0.67]
[1755619952540,51.90737434,178.57,178.52,0.67]
[1755619952755,0.72,178.56,178.51,11.18737434]
[1755619952958,40.72,178.55,178.51,11.88737434]
[1755619953164,40.72,178.55,178.52,11.88737434]
[1755619953842,40.72,178.55,178.53,0.7]
[1755619954038,40.72,178.55,178.51,0.7]
[1755619954348,46.32069291,178.55,178.51,0.7]
[1755619954549,57.50806725,178.55,178.51,0.7]
[1755619954866,58.18806725,178.55,178.5,37.18737434]
[1755619955067,40.72,178.55,178.51,11.88737434]
[1755619955245,40.72,178.55,178.52,11.88737434]
[1755619956043,40.72,178.55,178.5,11.88737434]
[1755619956351,0.68,178.54,178.5,11.18737434]
[1755619956554,52.56737434,178.53,178.49,0.06]
[1755619956768,52.56737434,178.53,178.51,0.06]
[1755619956769,41.38,178.53,178.51,0.06]
[1755619957072,11.86737434,178.52,178.51,0.06]
[1755619957955,17.4689876,178.52,178.51,0.06]
[1755619958479,39.59559401,178.5,178.49,0.06]
[1755619958638,13.59559401,178.49,178.47,0.06]
[1755619958848,66.06451372,178.48,178.47,0.06]
[1755619959071,13.59559401,178.46,178.45,0.06]
[1755619959368,39.59559401,178.43,178.42,0.2]
[1755619959576,92.06451372,178.43,178.42,0.2]
[1755619959750,0.56154537,178.43,178.42,0.2]
[1755619960076,52.15627182,178.52,178.42,0.2]
[1755619960077,11.18737434,178.47,178.42,12.08737434]
[1755619960367,40.74,178.46,178.43,0.7]
[1755619960538,11.18737434,178.45,178.42,0.2]
[1755619960732,41.42,178.46,178.42,0.2]
[1755619960733,52.60737434,178.46,178.42,0.2]
[1755619961348,11.86737434,178.45,178.42,0.2]
[1755619961533,40.78,178.44,178.42,0.2]
[1755619961738,40.78,178.44,178.42,0.9]
[1755619962046,17.47181305,178.43,178.42,0.2]
[1755619962259,51.96737434,178.44,178.42,0.2]
[1755619962468,40.78,178.44,178.42,0.2]
[1755619962650,46.3842679,178.44,178.42,0.2]
[1755619963036,47.0642679,178.44,178.42,0.2]
[1755619963335,40.78,178.44,178.43,0.7]
[1755619963644,40.76,178.46,178.43,0.7]
[1755619964868,40.76,178.46,178.42,11.38737434]
[1755619965168,40.76,178.46,178.45,11.18737434]
[1755619965461,40.76,178.48,178.44,26.0]
[1755619965637,52.62737434,178.48,178.43,11.18737434]
[1755619965833,52.62737434,178.48,178.43,11.88737434]
[1755619966034,0.68,178.47,178.42,11.38737434]
[1755619966257,52.60737434,178.46,178.42,0.2]
[1755619966456,11.18737434,178.44,178.42,0.2]
[1755619966660,51.90737434,178.44,178.42,0.2]
[1755619966845,52.58737434,178.44,178.42,0.2]
[1755619967150,16.79055694,178.47,178.43,0.7]
[1755619967360,52.58737434,178.46,178.42,0.2]
[1755619967564,11.18737434,178.44,178.42,0.2]
[1755619967765,51.90737434,178.44,178.42,0.2]
[1755619967965,0.68,178.43,178.42,0.2]
[1755619968472,11.18737434,178.47,178.42,12.08737434]
[1755619968771,40.72,178.45,178.42,12.08737434]
[1755619968970,40.72,178.45,178.42,11.38737434]
[1755619969175,40.72,178.45,178.42,0.9]
[1755619969869,40.72,178.45,178.42,11.38737434]
[1755619970075,17.46991767,178.5,178.44,11.18737434]
[1755619970245,40.72,178.49,178.45,11.18737434]
[1755619970445,40.72,178.49,178.45,11.88737434]
[1755619970646,41.4,178.49,178.44,11.18737434]
[1755619970846,41.4,178.49,178.44,11.88737434]
[1755619971041,0.68,178.48,178.42,0.9]
[1755619971561,11.86737434,178.48,178.42,0.9]
[1755619972359,17.4705445,178.48,178.42,0.9]
[1755619972962,6.28317016,178.48,178.42,0.9]
[1755619973158,17.4705445,178.48,178.42,0.9]
[1755619973482,11.18737434,178.46,178.42,0.2]
[1755619973658,51.90737434,178.46,178.42,0.2]
[1755619973976,11.18737434,178.44,178.42,0.2]
[1755619974282,5.60443871,178.43,178.42,0.2]
[1755619974451,0.68,178.43,178.42,0.2]
[1755619974651,17.47126881,178.45,178.42,0.2]
[1755619975186,11.18737434,178.43,178.42,0.2]
[1755619975683,11.86737434,178.43,178.42,0.2]
[1755619975889,53.14891971,178.43,178.42,0.2]
[1755619976588,58.75335842,178.43,178.42,0.2]
[1755619978745,46.88598408,178.43,178.42,0.2]
[1755619979084,46.32443871,178.43,178.42,0.2]
[1755619979258,57.51181305,178.43,178.42,0.2]
[1755619980480,40.72,178.43,178.42,0.2]
[1755619980655,40.72,178.43,178.42,0.9]
[1755619981052,40.72,178.43,178.42,0.2]
[1755619983183,46.32443871,178.43,178.42,0.2]
[1755619983367,40.72,178.43,178.42,0.2]
[1755619983553,52.59737434,178.43,178.42,0.2]
[1755619983896,58.20181305,178.43,178.42,0.2]
[1755619985190,58.76335842,178.43,178.42,0.2]
[1755619985754,203.35895243,178.43,178.42,1e-08]
[1755619985978,202.79740706,178.43,178.42,1e-08]
[1755619986874,202.79740706,178.43,178.41,0.06]
[1755619986875,13.59559401,178.42,178.41,1e-08]
[1755619987076,12.43891971,178.42,178.41,1e-08]
[1755619987283,53.19891971,178.42,178.41,1e-08]
[1755619988082,40.78,178.42,178.41,1e-08]
[1755619988477,57.57212717,178.42,178.41,1e-08]
[1755619988967,40.78,178.42,178.41,0.69000001]
[1755619989169,40.74,178.43,178.41,0.69000001]
[1755619989472,40.74,178.43,178.42,0.69]
[1755619990015,11.18737434,178.45,178.42,0.69]
[1755619990187,51.94737434,178.44,178.41,1e-08]
[1755619990489,40.74,178.44,178.41,0.69000001]
[1755619990661,40.74,178.44,178.42,0.69]
[1755619990994,11.18737434,178.47,178.43,0.69]
[1755619991296,0.03,178.44,178.42,11.18737434]
[1755619991490,0.03,178.44,178.43,11.18737434]
[1755619991862,0.03,178.44,178.43,11.87737434]
[1755619992584,0.03,178.44,178.43,0.69]
[1755619992775,0.03,178.44,178.41,1e-08]
[1755619994394,5.63412463,178.44,178.41,1e-08]
[1755619996295,6.32412463,178.44,178.41,1e-08]
[1755619996688,5.63412463,178.44,178.41,1e-08]
[1755619997599,0.03,178.44,178.42,11.87737434]
[1755619997772,0.03,178.44,178.42,0.69]
[1755619997979,0.03,178.44,178.41,1e-08]
[1755619998481,0.72,178.44,178.41,1e-08]
[1755619998681,11.87737434,178.43,178.41,1e-08]
[1755619999195,0.69,178.42,178.41,1e-08]